Workbook

Sheet 업무여유도 양식
A2: 업무여유도
A3: ( 참여분야 : 사업책임기술자 안상훈)
A4: (중복도 산정 기준일) | C4: 2016-09-28
A5: No. | B5: 용역명 | C5: 총사업금액 (백만원) | D5: 착수일 | E5: 준공일 | F5: 잔여 일수 | G5: 총계약 일수 | H5: 중복일수 (개월)
A6: 1 | B6: 거제 도시관리계획(재정비)수립용역 | C6: 395 | D6: 2014-12-11 | E6: 2017-01-02 | F6: =E6-$C$4+1 -> 97 | G6: =E6-D6+1 -> 754 | H6: =ROUNDDOWN(F6/30,1) -> 3.2
A7: 2 | B7: 2030 춘천 도시기본계획 및 도시관리계획(재정비) 수립용역 | C7: 487 | D7: 2015-05-16 | E7: 2017-12-31 | F7: =E7-$C$4+1 -> 460 | G7: =E7-D7+1 -> 961 | H7: =ROUNDDOWN(F7/30,1) -> 15.3
B8: 계 | H8: =SUM(H6:H7) -> 18.5
A10: ( 참여분야 : 도시계획분야 책임기술자 박성용)
A11: (중복도 산정 기준일) | C11: =$C$4 -> 2016-09-28
A12: No. | B12: 용역명 | C12: 총사업금액 (백만원) | D12: 착수일 | E12: 준공일 | F12: 잔여 일수 | G12: 총계약 일수 | H12: 중복일수 (개월)
A13: 1 | B13: 광명 소하지구 도시개발사업 실시설계 및 환지계획수행용역 | C13: 314 | D13: 2015-11-09 | E13: 2017-11-08 | F13: =E13-$C$4+1 -> 407 | G13: =E13-D13+1 -> 731 | H13: =ROUNDDOWN(F13/30,1) -> 13.5
A14: 2 | B14: 청주시 미집행 도시계획시설 정비 및 도시관리계획 결정(변경)용역 | C14: 275 | D14: 2016-05-02 | E14: 2017-01-26 | F14: =E14-$C$4+1 -> 121 | G14: =E14-D14+1 -> 270 | H14: =ROUNDDOWN(F14/30,1) -> 4
A15: 3 | B15: 삼성 덕정지구 도시개발사업 개발계획 및 실시설계용역 | C15: 628 | D15: 2016-06-02 | E15: 2018-06-01 | F15: =E15-$C$4+1 -> 612 | G15: =E15-D15+1 -> 730 | H15: =ROUNDDOWN(F15/30,1) -> 20.4
A16: 4 | B16: 오산시 풍수해저감 종합계획 수립용역 | C16: 372 | D16: 2016-08-01 | E16: 2017-07-31 | F16: =E16-$C$4+1 -> 307 | G16: =E16-D16+1 -> 365 | H16: =ROUNDDOWN(F16/30,1) -> 10.2
B17: 계 | H17: =SUM(H13:H16) -> 48.1
A19: ( 참여분야 : 도로공항분야 책임기술자 이동주)
A20: (중복도 산정 기준일) | C20: =$C$4 -> 2016-09-28
A21: No. | B21: 용역명 | C21: 총사업금액 (백만원) | D21: 착수일 | E21: 준공일 | F21: 잔여 일수 | G21: 총계약 일수 | H21: 중복일수 (개월)
A22: 1 | B22: 인천00도시첨단산업단지 조사설계용역 | C22: 991 | D22: 2014-04-21 | E22: 2017-03-19 | F22: =E22-$C$4+1 -> 173 | G22: =E22-D22+1 -> 1064 | H22: =ROUNDDOWN(F22/30,1) -> 5.7
B23: 계 | H23: =SUM(H22:H22) -> 5.7
A25: ( 참여분야 : 토질지질분야 책임기술자 지정택)
A26: (중복도 산정 기준일) | C26: =$C$4 -> 2016-09-28
A27: No. | B27: 용역명 | C27: 총사업금액 (백만원) | D27: 착수일 | E27: 준공일 | F27: 잔여 일수 | G27: 총계약 일수 | H27: 중복일수 (개월)
A28: 1 | B28: 비봉 농오천테마공원 조성계획 변경 및 기본.실시설계용역 | C28: 354 | D28: 2014-06-02 | E28: 2015-06-01 | F28: 중지중 | G28: =E28-D28+1 -> 365
A29: 2 | B29: 고흥구례지역 가뭄대비 나눔지하수사업 | C29: 411 | D29: 2015-07-09 | E29: 2016-12-24 | F29: 3개월 미만 | G29: =E29-D29+1 -> 535
A30: 3 | B30: 계촌천 하천재해예방공사 실시설계용역 | C30: 739 | D30: 2016-06-01 | E30: 2017-05-31 | F30: =E30-$C$4+1 -> 246 | G30: 365 | H30: =ROUNDDOWN(F30/30,1) -> 8.2
A31: 4 | B31: 전천 하천기본계획(변경) 및 소하천정비종합계획(변경) 용역 | C31: 874 | D31: 2016-06-08 | E31: 2018-06-07 | F31: 618 | G31: 730 | H31: 20.6
A32: 5 | B32: 제주도지역 골재자원조사 용역 | C32: 251 | D32: 2016-07-08 | E32: 2017-01-03 | F32: 98 | G32: 180 | H32: 3.2
B33: 계 | H33: =SUM(H28:H32) -> 32
A35: ( 참여분야 :토목구조분야 책임기술자 손경중)
A36: (중복도 산정 기준일) | C36: =$C$4 -> 2016-09-28
A37: No. | B37: 용역명 | C37: 총사업금액 (백만원) | D37: 착수일 | E37: 준공일 | F37: 잔여 일수 | G37: 총계약 일수 | H37: 중복일수 (개월)
A38: 1 | B38: 부성지구 도시개발사업 구역지정(변경), 개발계획 및 실시설계(변경) 용역 | C38: 956 | D38: 2016-07-22 | E38: 2017-07-21 | F38: =E38-$C$4+1 -> 297 | G38: =E38-D38+1 -> 365 | H38: =ROUNDDOWN(F38/30,1) -> 9.9
A39: 2 | B39: 소제지구 택지개발사업 개발계획 및 실시설계용역 | C39: 1034 | D39: 2016-08-11 | E39: 2017-08-10 | F39: 317 | G39: 365 | H39: 10.5
A40: 3 | B40: 남양주진건 기업형임대주택 공급촉진지구 조사설계용역 | C40: 2899 | D40: 2016-09-01 | E40: 2018-02-28 | F40: 519 | G40: 546 | H40: 17.3 | I40: 관리용역제외
B41: 계 | H41: =SUM(H38:H40) -> 37.7
A43: ( 참여분야 : 상하수도분야 책임기술자 신영진)
A44: (중복도 산정 기준일) | C44: =$C$4 -> 2016-09-28
A45: No. | B45: 용역명 | C45: 총사업금액 (백만원) | D45: 착수일 | E45: 준공일 | F45: 잔여 일수 | G45: 총계약 일수 | H45: 중복일수 (개월)
A46: 1 | B46: 남양주진건 기업형임대주택 공급촉진지구 조사설계용역 | C46: 2899 | D46: 2016-09-01 | E46: 2018-02-28 | F46: =E46-$C$4+1 -> 519 | G46: =E46-D46+1 -> 546 | H46: =ROUNDDOWN(F46/30,1) -> 17.3
B47: 계 | H47: =SUM(H46:H46) -> 17.3
